bitfinex-derivatives/quotes_ETHF0:USTF0_20250106
["timestamp","ask_amount","ask_price","bid_price","bid_amount"]
[1736183261753,3.47822,3697.3,3697.1,0.27043]
[1736183262061,0.27042,3697.4,3697.1,0.27043]
[1736183262253,0.27042,3697.4,3697.0,2.53048278]
[1736183262254,0.27047,3696.7,3696.1,0.27051]
[1736183262449,0.27047,3696.8,3696.0,5.73828278]
[1736183262655,3.2078,3696.9,3696.8,0.27046]
[1736183262857,3.8037,3697.6,3696.8,2.53048278]
[1736183263060,3.2078,3698.0,3697.2,2.53048278]
[1736183263257,0.27039,3697.8,3697.5,0.27041]
[1736183263555,0.27043,3697.2,3697.0,0.27044]
[1736183263758,3.2078,3697.4,3696.9,0.5998]
[1736183263959,0.27043,3697.3,3697.0,0.27044]
[1736183264154,0.27043,3697.3,3697.1,0.27043]
[1736183265257,3.2078,3697.4,3696.8,2.53048278]
[1736183265461,0.27044,3697.1,3696.9,0.27045]
[1736183266054,3.2078,3697.4,3696.9,0.27045]
[1736183266255,0.27044,3697.0,3696.8,2.53048278]
[1736183266467,0.27044,3697.0,3696.9,0.27045]
[1736183266960,3.2078,3697.4,3696.8,0.27045]
[1736183267155,0.67603,3697.5,3696.3,0.27049]
[1736183267156,0.27046,3696.8,3696.3,0.27049]
[1736183267357,0.5741,3696.7,3695.8,3.2078]
[1736183267560,0.27047,3696.6,3696.5,0.27048]
[1736183267858,1.7229,3696.7,3696.3,0.27049]
[1736183267859,0.27049,3696.4,3696.3,0.27049]
[1736183270565,0.27048,3696.5,3696.4,0.27048]
[1736183271653,3.2078,3697.0,3696.2,3.2078]
[1736183271860,3.2078,3697.0,3696.9,0.27045]
[1736183272551,3.8048,3697.4,3696.9,40.8]
[1736183272756,3.2078,3697.4,3697.3,0.27042]
[1736183274261,3.2078,3697.8,3697.0,3.11498278]
[1736183274463,0.2704,3697.7,3697.6,0.27039]
[1736183274968,3.2078,3697.8,3697.0,3.11498278]
[1736183275168,3.2078,3697.8,3697.0,0.5845]
[1736183275361,0.27043,3697.3,3697.2,0.27042]
[1736183275557,0.27042,3697.4,3697.3,0.27042]
[1736183275956,0.27041,3697.6,3697.5,0.2704]
[1736183276564,0.27042,3697.4,3697.3,0.27041]
[1736183277065,0.27041,3697.5,3697.4,0.27041]
[1736183277463,3.2078,3697.8,3697.1,0.6761]
[1736183277667,3.2078,3697.8,3697.0,3.2078]
[1736183277968,0.27042,3697.4,3697.3,0.27042]
[1736183278659,0.6123,3698.1,3697.0,5.73828278]
[1736183278861,0.6123,3698.1,3697.4,2.53048278]
[1736183279064,0.27039,3697.9,3697.8,0.27038]
[1736183279769,0.27039,3697.9,3697.4,2.53048278]
[1736183279770,0.6123,3698.1,3697.2,2.3296]
[1736183279964,0.2704,3697.8,3697.7,0.27039]
[1736183280666,3.4782,3697.8,3697.7,0.27039]
[1736183281370,3.47819,3697.8,3697.7,0.27039]
[1736183281565,3.7819,3698.2,3697.6,2.53048278]
[1736183281766,3.2078,3698.2,3698.1,2.80084278]
[1736183282062,3.2078,3698.7,3698.3,0.67587]
[1736183282263,0.27034,3698.6,3698.5,0.27033]
[1736183282465,3.47812,3698.7,3698.6,0.27033]
[1736183283168,0.67571,3699.3,3698.8,0.2703]
[1736183283169,0.27031,3698.9,3698.8,0.2703]
[1736183283470,3.2078,3699.1,3698.4,41.47586]
[1736183283673,5.54774577,3700.5,3699.7,0.27025]
[1736183283674,3.47804,3699.8,3699.7,0.27025]
[1736183283973,0.2703,3699.0,3698.9,0.2703]
[1736183284171,3.2078,3699.4,3698.5,3.69248278]
[1736183284373,0.27032,3698.7,3698.6,41.07032]
[1736183284669,0.5682,3699.3,3698.6,40.8]
[1736183284876,0.27028,3699.2,3698.7,0.27031]
[1736183285171,0.5682,3699.3,3698.6,40.8]
[1736183285481,0.27029,3699.1,3699.0,0.2703]
[1736183285667,3.2078,3699.4,3698.9,2.53048278]
[1736183285868,0.5919,3699.7,3699.0,0.5822]
[1736183286069,0.27027,3699.5,3699.4,0.27026]
[1736183286571,0.5919,3699.7,3699.5,0.27025]
[1736183286572,0.27025,3699.6,3699.5,0.27025]
[1736183286773,3.2078,3700.1,3699.1,0.67573]
[1736183287068,3.47802,3700.1,3700.0,0.27022]
[1736183287367,0.27024,3699.8,3699.7,0.27024]
[1736183288771,0.27024,3699.9,3699.8,0.27023]
[1736183288981,0.27023,3700.0,3699.9,0.27022]
[1736183289168,0.67557,3700.0,3699.3,3.2078]
[1736183289365,0.27027,3699.4,3699.3,3.2078]
[1736183289571,0.67557,3700.0,3698.5,3.69148278]
[1736183289572,3.2078,3699.6,3698.7,3.2078]
[1736183289774,0.27028,3699.3,3699.2,0.27028]
[1736183289961,0.27027,3699.4,3699.3,0.27027]
[1736183290162,3.2078,3699.6,3698.8,0.67579]
[1736183290369,0.27026,3699.5,3699.0,0.94605]
[1736183290568,3.2078,3699.6,3698.9,2.53048278]
[1736183290872,0.27028,3699.3,3699.2,0.27028]
[1736183291269,0.2703,3699.1,3699.0,0.27029]
[1736183291474,3.88344,3699.6,3698.7,3.2078]
[1736183291475,3.2078,3699.6,3698.7,3.2078]
[1736183291769,0.27028,3699.3,3699.2,0.27028]
[1736183292268,0.27028,3699.4,3699.3,0.27027]
[1736183294566,3.2078,3699.6,3699.0,0.579]
[1736183294772,0.27024,3699.9,3699.8,0.27023]
[1736183294979,2.53048278,3700.7,3699.8,0.27023]
[1736183294980,3.2078,3700.9,3699.8,3.20609278]
[1736183295175,3.2078,3700.9,3700.5,2.53048278]
[1736183295370,0.27011,3701.6,3701.2,0.27014]
[1736183295573,0.5697,3701.7,3701.2,0.27014]
[1736183295574,0.27014,3701.3,3701.2,0.27014]
[1736183295778,0.27014,3701.3,3700.9,2.53048278]
[1736183296079,0.27014,3701.2,3700.9,2.53048278]
[1736183296278,0.27014,3701.2,3701.1,0.27014]
[1736183296486,0.27015,3701.1,3701.0,0.27015]
[1736183296682,3.2078,3701.5,3700.9,2.53048278]
[1736183296982,0.5697,3701.7,3700.9,2.53048278]
[1736183297177,0.27013,3701.4,3701.3,0.27012]
[1736183297377,3.88304,3701.9,3701.3,2.53048278]
[1736183297378,3.2078,3701.9,3701.3,2.53048278]
[1736183297577,3.2078,3701.9,3701.8,0.27009]
[1736183297987,0.27006,3702.2,3702.1,0.27007]
[1736183298177,3.2078,3702.3,3702.2,0.27006]
[1736183298886,3.2078,3702.3,3701.8,3.2078]
[1736183299086,3.2078,3702.3,3701.8,3.47789]
[1736183299087,0.27009,3701.9,3701.8,3.47789]
[1736183299285,0.27007,3702.1,3702.0,0.27008]
[1736183299589,0.27007,3702.2,3702.1,0.27007]
[1736183299882,3.2078,3702.3,3702.2,0.27006]
[1736183300772,3.47784,3702.6,3702.4,0.27004]
[1736183300975,3.2078,3702.6,3702.5,0.27004]
[1736183301181,0.27002,3702.8,3702.6,0.27003]
[1736183301375,3.786,3703.0,3702.5,0.27004]
[1736183301879,0.27003,3702.7,3702.6,0.27003]
[1736183302079,0.27003,3702.8,3702.2,40.8]
[1736183302282,0.27002,3702.8,3702.6,0.27003]
[1736183302480,3.786,3703.0,3702.2,44.0078]
[1736183302780,3.2078,3702.6,3701.8,3.2078]
[1736183302984,3.2078,3702.6,3701.5,1.161]
[1736183302985,0.67511,3702.5,3701.5,0.27011]
[1736183303184,3.2078,3702.1,3701.2,3.2078]
[1736183303483,0.27011,3701.6,3701.4,0.27012]
[1736183303680,3.7181,3702.5,3701.3,2.53048278]
[1736183303996,3.2078,3701.6,3700.9,2.53048278]
[1736183304282,0.27013,3701.3,3701.1,0.27014]
[1736183304479,3.2078,3701.6,3700.9,2.53048278]
[1736183304687,0.27013,3701.4,3701.2,0.27014]
[1736183304988,0.27013,3701.4,3700.9,2.53048278]
[1736183304989,0.27012,3701.4,3701.0,0.27015]
[1736183305191,0.27012,3701.4,3700.9,2.53048278]
[1736183305585,3.2078,3701.6,3701.2,0.27014]
[1736183305778,3.2078,3701.6,3700.8,3.2078]
[1736183306083,0.27016,3701.0,3700.8,3.47796]
[1736183306886,0.27016,3701.0,3700.8,3.2078]
[1736183307085,0.27016,3700.9,3700.8,3.47796]
[1736183307491,0.27016,3700.9,3700.8,3.2078]
[1736183307677,0.27018,3700.7,3700.5,0.535]
[1736183307882,0.2702,3700.5,3700.3,0.2702]
[1736183308083,0.27019,3700.5,3700.3,0.2702]
[1736183308386,0.2702,3700.3,3700.2,2.53048278]
[1736183308884,3.2078,3700.7,3699.9,0.5596]
[1736183309194,0.27023,3699.9,3699.8,44.0078]
[1736183309485,0.27026,3699.5,3699.4,2.53048278]
[1736183309682,3.2078,3700.2,3699.4,2.53048278]
[1736183309881,0.27026,3699.6,3699.5,40.8]
[1736183321984,0.27024,3699.8,3699.7,0.27024]
[1736183322179,0.27025,3699.6,3699.5,40.8]
[1736183322789,3.2078,3699.9,3699.5,40.8]
[1736183323292,3.2078,3699.9,3699.6,0.5079]
[1736183323493,3.2078,3699.9,3699.7,0.27024]
[1736183323494,0.27024,3699.8,3699.7,0.27024]
[1736183323698,0.27025,3699.6,3699.5,40.8]
[1736183325683,0.27028,3699.3,3699.2,0.27028]
[1736183326194,0.27028,3699.3,3699.2,41.07028]
[1736183326687,0.27024,3699.8,3699.2,40.8]
[1736183326896,0.27023,3700.0,3699.9,0.27022]
[1736183327387,3.2078,3700.7,3700.1,0.27021]
[1736183327388,0.27022,3700.2,3700.1,0.27021]
[1736183327593,0.27021,3700.3,3700.2,0.2702]
[1736183327789,3.2078,3700.7,3699.8,1.0742]
[1736183327997,0.27022,3700.1,3700.0,0.27022]
[1736183328390,0.27022,3700.0,3699.9,41.07023]
[1736183329193,0.27019,3700.6,3700.5,0.27018]
[1736183329400,3.2078,3700.9,3700.4,2.53048278]
[1736183329597,0.27019,3700.6,3700.5,0.27019]
[1736183329801,3.2078,3700.9,3700.4,2.53048278]
[1736183330003,3.2078,3701.3,3700.5,1.16]
[1736183330298,0.27015,3701.1,3700.8,2.53048278]
[1736183330500,0.27015,3701.1,3701.0,0.27015]
[1736183330700,0.27015,3701.0,3700.9,0.81186]
[1736183331296,0.27015,3701.0,3700.9,0.5417]
[1736183331597,0.27017,3700.8,3700.7,2.40555179]
[1736183331802,0.27017,3700.8,3700.7,2.13538179]
[1736183332099,0.27018,3700.6,3700.5,3.47799]
[1736183332593,0.27018,3700.6,3700.5,0.27019]
[1736183332800,0.27019,3700.5,3700.4,2.94727179]
[1736183333001,0.27019,3700.5,3700.4,0.81189]
[1736183333202,3.8832,3700.9,3700.4,0.5417]
[1736183333396,3.8832,3700.9,3700.0,3.726]
[1736183333397,3.2078,3700.9,3700.0,3.2078]
[1736183333702,0.2702,3700.1,3700.0,0.2702]
[1736183334099,0.27021,3699.8,3699.7,2.93404325]
[1736183334398,0.67543,3700.4,3699.7,2.66383325]
[1736183334604,3.2078,3700.5,3700.1,2.66383325]
[1736183334797,1.0315,3700.8,3700.4,3.2078]
[1736183334998,0.27013,3700.9,3700.8,0.27013]
[1736183335498,0.27015,3700.7,3700.6,0.27015]
[1736183336803,0.27014,3700.8,3700.7,0.27014]
[1736183337102,0.67528,3701.2,3700.6,0.27015]
[1736183337103,0.27015,3700.7,3700.6,0.27015]
[1736183337302,0.27015,3700.6,3700.5,3.49369325]
[1736183337607,0.27015,3700.6,3700.5,0.82986]
[1736183338808,0.27015,3700.7,3700.6,0.27014]
[1736183339408,3.2078,3701.3,3701.2,0.27011]
[1736183340006,0.2701,3701.4,3701.1,3.752]
[1736183340201,0.27009,3701.5,3701.4,0.27009]
[1736183340406,5.54334096,3701.6,3701.5,0.27009]
[1736183340612,0.27008,3701.6,3701.5,0.27009]
[1736183341212,0.27009,3701.5,3701.4,2.93392325]
[1736183341613,5.27326096,3701.8,3701.4,2.66383325]
[1736183341818,3.47787,3701.9,3701.8,0.27007]
[1736183343019,3.47786,3701.9,3701.8,0.27007]
[1736183345218,0.5492,3702.3,3701.8,2.66383325]
[1736183345520,0.27006,3702.0,3701.9,0.27005]
[1736183346314,1.22429,3702.3,3701.8,0.27006]
[1736183346517,1.22429,3702.3,3701.1,3.2078]
[1736183346518,3.2078,3702.1,3701.1,3.2078]
[1736183346714,0.27011,3701.2,3701.1,0.27012]
[1736183346914,3.2078,3701.6,3700.7,3.2078]
[1736183347110,0.27015,3700.7,3700.6,0.27015]
[1736183347916,0.27015,3700.8,3700.7,0.27015]
[1736183348315,3.2078,3701.2,3700.5,3.82383325]
[1736183348518,0.27015,3700.6,3700.5,4.09399325]
[1736183349123,0.27015,3700.7,3700.6,0.27014]
[1736183349824,3.2078,3701.2,3700.5,3.82383325]
[1736183350124,0.27014,3700.9,3700.8,0.27014]
[1736183350721,3.2078,3701.2,3700.5,3.82383325]
[1736183350921,0.27014,3700.9,3700.8,0.27013]
[1736183351119,0.27011,3701.2,3701.1,0.27012]
[1736183352320,3.88302,3701.6,3700.9,2.66383325]
[1736183352321,3.2078,3701.6,3700.9,2.66383325]
[1736183352626,3.2078,3701.6,3700.8,3.2078]
[1736183352627,5.27326096,3701.8,3701.7,0.27007]
[1736183353021,5.27326096,3701.8,3701.7,41.07007]
[1736183353326,5.27326096,3701.8,3701.7,44.27787]
[1736183354128,0.27003,3702.4,3702.3,0.27003]
[1736183354321,0.27002,3702.5,3702.4,0.27002]
[1736183354723,0.27003,3702.5,3702.4,0.27002]
[1736183355124,0.27004,3702.2,3702.1,0.27004]
[1736183355423,0.27004,3702.2,3702.0,2.66383325]
[1736183355424,0.27004,3702.3,3702.2,0.27003]
[1736183356123,3.2078,3702.6,3702.0,2.66383325]
[1736183356521,0.27,3702.8,3702.7,0.27]
[1736183356723,0.5204,3703.1,3702.8,0.26999]
[1736183356724,0.26999,3702.9,3702.8,0.26999]
[1736183357022,0.26999,3702.9,3702.8,2.40305602]
[1736183358124,0.26999,3702.9,3702.8,2.13306602]
[1736183358531,0.26998,3703.0,3702.9,0.26998]
[1736183358923,0.563,3703.5,3702.8,2.13306602]
[1736183359124,0.563,3703.5,3703.0,0.26998]
[1736183359428,0.563,3703.5,3702.8,2.66001961]
[1736183359632,0.26999,3702.9,3702.8,2.93000961]
[1736183360128,0.26999,3702.9,3702.8,2.66001961]
[1736183360327,0.67488,3703.4,3702.8,2.66001961]
[1736183360718,0.27004,3702.3,3702.2,0.27003]
[1736183361229,0.27003,3702.4,3702.2,0.27003]
[1736183361429,0.27002,3702.5,3702.4,0.27002]
[1736183361630,0.67497,3702.9,3702.4,0.27002]
[1736183361833,0.27002,3702.5,3702.4,0.27002]
[1736183362037,0.27003,3702.4,3702.3,0.27002]
[1736183362530,0.27001,3702.6,3702.5,0.27001]
[1736183364724,3.2078,3703.2,3702.4,2.66001961]
[1736183364929,0.27003,3702.3,3702.2,2.2328]
[1736183365126,0.27003,3702.3,3702.2,1.0738]
[1736183365432,0.27003,3702.3,3702.2,1.34384]
[1736183367326,0.27002,3702.5,3702.3,0.27003]
[1736183367528,0.27001,3702.6,3702.5,0.27001]
[1736183367828,8.48106096,3703.6,3702.5,3.2078]
[1736183368028,0.26998,3703.1,3703.0,2.92998961]
[1736183368232,0.26998,3703.1,3703.0,2.66001961]
[1736183369030,0.26998,3703.1,3703.0,2.92999961]
[1736183371036,0.67475,3704.2,3703.0,2.66001961]
[1736183371329,0.67475,3704.1,3703.5,3.2078]
[1736183371538,0.67477,3704.0,3703.1,4.2822]
[1736183371727,0.26996,3703.2,3703.1,3.2078]
[1736183371928,0.26996,3703.2,3703.1,3.47777]
[1736183372128,3.2078,3704.0,3703.1,3.2078]
[1736183372339,0.26995,3703.5,3703.4,2.92995961]
[1736183372932,0.26994,3703.6,3703.5,0.26993]
[1736183373234,0.26994,3703.6,3703.4,2.92995961]
[1736183373439,0.26994,3703.5,3703.4,2.92996961]
[1736183374328,0.26994,3703.5,3703.4,2.66001961]
[1736183374935,0.26994,3703.5,3703.4,2.92996961]
[1736183375138,0.26994,3703.5,3703.4,2.66001961]
[1736183375536,0.67479,3703.9,3703.1,3.2078]
[1736183375738,0.67479,3703.9,3702.6,3.2078]
[1736183375739,0.67488,3703.4,3702.6,3.2078]
[1736183376036,0.27002,3702.4,3702.3,2.66001961]
[1736183376239,0.27003,3702.3,3702.2,3.2078]
[1736183376438,0.27005,3702.0,3701.9,2.66001961]
[1736183376833,0.27006,3701.9,3701.8,3.2078]
[1736183380644,0.27006,3701.9,3701.8,3.47787]
[1736183380941,0.27006,3701.9,3701.8,3.2078]
[1736183381245,0.27006,3701.9,3701.8,44.0078]
[1736183383942,3.2078,3701.9,3701.1,2.13426855]
[1736183384149,0.27012,3701.1,3701.0,3.2078]
[1736183384647,0.67529,3701.2,3700.7,40.8]
[1736183384850,0.27014,3700.8,3700.7,40.8]
[1736183385346,0.27014,3700.8,3700.7,41.07015]
[1736183385541,0.27014,3700.8,3700.7,40.8]
[1736183386643,0.27014,3700.8,3700.7,41.07015]
[1736183386845,0.27014,3700.8,3700.7,40.8]
[1736183387245,0.27014,3700.8,3700.7,41.07015]
[1736183387441,0.27014,3700.8,3700.7,40.8]
[1736183387745,0.27014,3700.8,3700.7,41.07015]
[1736183387945,0.27014,3700.8,3700.7,40.8]
[1736183388145,0.27014,3700.8,3700.7,41.07015]
[1736183388348,0.27014,3700.8,3700.7,40.8]
[1736183388749,0.27014,3700.8,3700.7,41.07015]
[1736183389350,0.27014,3700.8,3700.7,40.8]
[1736183389550,0.27014,3700.8,3700.7,41.07015]
[1736183389749,0.27014,3700.8,3700.7,40.8]
[1736183392541,0.27014,3700.8,3700.7,41.07015]
[1736183392744,0.27014,3700.8,3700.7,40.8]
[1736183393752,0.27014,3700.8,3700.7,41.07015]
[1736183394449,0.27014,3700.8,3700.7,40.8]
[1736183395749,0.5127,3701.1,3700.5,5.34206855]
[1736183395952,0.27018,3700.3,3700.2,2.13426855]
[1736183396350,0.27018,3700.3,3700.2,40.8]
[1736183397255,0.27018,3700.3,3700.2,43.20444855]
[1736183397443,0.27018,3700.4,3700.3,0.27017]
[1736183397649,0.27016,3700.6,3700.5,0.27015]
[1736183398156,0.27016,3700.6,3700.5,2.13426855]
[1736183398852,0.27013,3701.0,3700.9,0.27013]
[1736183399061,0.5416,3701.3,3700.9,2.13426855]
[1736183399254,0.27012,3701.0,3700.7,0.27014]
[1736183399448,0.5416,3701.3,3700.5,4.3658]
[1736183399653,0.27015,3700.6,3700.5,4.3658]
[1736183400257,0.27015,3700.6,3700.5,4.63596]
[1736183401256,0.27015,3700.6,3700.5,4.3658]
[1736183401446,0.27015,3700.6,3700.5,4.63596]
[1736183401651,0.27015,3700.6,3700.5,1.42816]
[1736183401959,0.27019,3700.1,3700.0,3.2078]
[1736183402160,0.27019,3700.1,3700.0,5.61226855]
[1736183402349,0.27019,3700.1,3700.0,3.2078]
[1736183402553,0.67545,3700.3,3699.5,3.2078]
[1736183402763,0.4972,3700.5,3700.2,2.13426855]
[1736183403057,0.27018,3700.3,3700.2,2.13426855]
[1736183403249,0.27022,3699.7,3699.6,44.09226855]
[1736183403456,0.27022,3699.7,3699.6,44.36249855]
[1736183403656,0.27022,3699.7,3699.6,3.29226855]
[1736183403851,4.33617,3700.2,3699.2,0.27025]
[1736183403852,0.27025,3699.3,3699.2,0.27025]
[1736183404052,0.67555,3699.8,3699.1,4.1469]
[1736183404356,0.27024,3699.4,3699.3,0.27024]
[1736183404662,0.27025,3699.4,3699.3,0.27024]
[1736183405049,0.27026,3699.3,3699.2,0.27025]
[1736183405365,0.27028,3699.0,3698.9,0.27027]
[1736183405859,0.67563,3699.3,3698.6,3.2078]
[1736183406060,0.27029,3698.7,3698.6,3.2078]
[1736183406262,0.27029,3698.7,3698.6,3.4781]
[1736183407564,0.27029,3698.7,3698.6,3.2078]
[1736183409358,0.457,3698.9,3698.6,3.2078]
[1736183409662,0.72728,3698.9,3698.8,0.27029]
[1736183409865,0.72728,3698.9,3698.8,41.07029]
[1736183410061,0.72728,3698.9,3698.8,40.8]
[1736183410865,0.27031,3698.5,3698.4,0.27031]
[1736183411765,0.27029,3698.8,3698.6,0.2703]
[1736183411958,0.27029,3698.8,3698.7,40.8]
[1736183412162,0.27029,3698.8,3698.7,41.07029]
[1736183413966,0.27029,3698.8,3698.7,40.8]
[1736183414169,3.2078,3699.0,3698.2,5.34206855]
[1736183414373,0.27032,3698.3,3698.2,5.61238855]
[1736183414663,3.2078,3699.0,3698.2,5.34206855]
[1736183414864,0.27031,3698.6,3698.5,2.40456855]
[1736183415066,0.27031,3698.6,3698.5,2.13426855]
[1736183415462,0.27031,3698.6,3698.5,2.40457855]
[1736183415662,0.27031,3698.6,3698.5,2.13426855]
[1736183416066,0.27032,3698.3,3698.2,5.61238855]
[1736183416668,0.27032,3698.5,3698.4,0.27031]
[1736183416866,0.97,3698.7,3698.2,5.34206855]
[1736183417071,0.27032,3698.3,3698.2,5.61238855]
[1736183417264,0.27032,3698.3,3698.2,5.61239855]
[1736183418173,0.27032,3698.3,3698.2,5.61238855]
[1736183418371,0.27032,3698.3,3698.2,44.0078]
[1736183419269,0.97,3698.7,3697.6,2.13426855]
[1736183419574,3.2078,3698.6,3697.9,2.13426855]
[1736183419772,0.27033,3698.3,3698.2,2.40458855]
[1736183419969,0.97,3698.7,3698.2,2.13426855]
[1736183420275,1.2403,3698.7,3698.6,0.2703]
[1736183421068,0.27029,3698.9,3698.8,0.27028]
[1736183421774,0.27029,3698.9,3698.8,2.40454855]
[1736183422569,3.88342,3699.4,3698.8,2.13426855]
[1736183422764,3.88342,3699.4,3699.0,0.27026]
[1736183422765,0.27027,3699.1,3699.0,0.27026]
[1736183423066,0.27027,3699.1,3699.0,2.40452855]
[1736183423469,0.27026,3699.3,3699.2,0.27025]
[1736183423669,0.27026,3699.3,3699.2,2.40451855]
[1736183423869,3.2078,3700.0,3699.2,2.13426855]
[1736183424071,0.27022,3699.8,3699.7,0.27022]
[1736183424273,3.2078,3700.0,3699.3,5.34206855]
[1736183424473,0.27024,3699.4,3699.3,3.2078]
[1736183424777,0.27028,3698.9,3698.8,3.2078]
[1736183425983,0.27031,3698.5,3698.4,2.13426855]
[1736183426980,3.8835,3699.0,3698.4,2.13426855]
[1736183427176,0.27031,3698.5,3698.4,2.13426855]
[1736183427472,0.2703,3698.7,3698.6,0.2703]
[1736183427878,0.27031,3698.6,3698.5,0.2703]
[1736183429786,0.27033,3698.2,3698.1,5.34206855]
[1736183430071,0.27033,3698.2,3698.1,3.2078]
[1736183430278,0.27033,3698.2,3697.5,2.13426855]
[1736183430279,0.27037,3697.6,3697.5,2.13426855]
[1736183430580,0.27036,3697.8,3697.7,0.27036]
[1736183430775,0.9535,3698.1,3697.5,2.13426855]
[1736183430972,0.27037,3697.7,3697.6,0.27037]
[1736183431177,3.2078,3698.6,3697.5,2.13426855]
[1736183431482,0.27036,3697.8,3697.7,5.61242855]
[1736183432086,0.27036,3697.8,3697.7,5.34206855]
[1736183432380,0.27036,3697.8,3697.7,5.61243855]
[1736183432580,0.27036,3697.8,3697.7,5.34206855]
[1736183433577,0.27036,3697.8,3697.7,5.61243855]
[1736183434474,0.27036,3697.8,3697.7,5.34206855]
[1736183434671,0.27036,3697.8,3697.7,3.2078]
[1736183436176,0.9723,3698.0,3697.7,5.34206855]
[1736183436381,0.27036,3697.9,3697.8,0.27035]
[1736183436977,0.27036,3697.8,3697.7,5.34206855]
[1736183437183,0.27036,3697.8,3697.7,3.2078]
[1736183439396,0.27036,3697.8,3697.7,3.47817]
[1736183439893,0.27036,3697.9,3697.8,0.27035]
[1736183441188,0.9723,3698.0,3697.7,5.34206855]
[1736183441390,0.27036,3697.8,3697.7,3.2078]
[1736183441692,0.27036,3697.8,3697.7,3.47817]
[1736183442193,0.27036,3697.8,3697.7,0.27037]
[1736183442386,0.27037,3697.7,3697.6,0.27037]
[1736183442581,0.27037,3697.6,3697.5,3.2078]
[1736183443182,0.27037,3697.6,3697.5,3.47818]
[1736183443687,0.27037,3697.7,3697.6,0.27036]
[1736183445885,0.27037,3697.6,3697.5,3.47817]
[1736183446086,0.4911,3698.0,3697.5,3.2078]
[1736183446392,0.27034,3698.2,3698.1,0.27033]
[1736183446590,5.27326096,3698.4,3698.2,0.27033]
[1736183446591,3.47813,3698.3,3698.2,0.27033]
[1736183446789,3.47812,3698.3,3698.2,0.27033]
[1736183446991,5.27326096,3698.4,3698.3,0.27032]
[1736183447191,3.2078,3698.7,3698.6,0.2703]
[1736183447192,8.75136096,3698.7,3698.6,0.2703]
[1736183447886,0.27031,3698.5,3698.4,0.27031]
[1736183448396,3.2078,3698.7,3698.0,2.13426855]
[1736183448594,0.27034,3698.2,3698.1,0.27033]
[1736183449096,0.4954,3698.5,3697.7,2.63346855]
[1736183449288,0.27036,3697.9,3697.8,0.27035]
[1736183449492,0.4929,3698.1,3697.7,2.63346855]
[1736183449697,0.27035,3698.0,3697.9,0.27034]
[1736183449997,0.4929,3698.1,3697.7,2.63346855]
[1736183450188,0.27036,3697.9,3697.8,0.27035]
[1736183451093,0.27035,3698.0,3697.9,0.27034]
[1736183453795,0.27036,3697.8,3697.7,2.90382855]
[1736183453997,0.27036,3697.8,3697.7,2.40462855]
[1736183454695,0.27036,3697.8,3697.6,3.6779]
[1736183454995,0.67586,3698.1,3697.6,3.2078]
[1736183454996,0.27037,3697.7,3697.6,3.2078]
[1736183455196,0.74467,3697.7,3697.6,3.2078]
[1736183457899,0.74467,3697.7,3697.2,0.2704]
[1736183457900,0.2704,3697.3,3697.2,0.27039]
[1736183458088,0.67595,3697.6,3697.1,2.13426855]
[1736183458289,0.2704,3697.2,3697.1,43.20467855]
[1736183458491,0.2704,3697.2,3697.1,2.40467855]
[1736183459303,5.74756096,3697.7,3697.1,2.13426855]
[1736183459601,0.27039,3697.5,3697.4,0.27038]
[1736183459999,5.27326096,3697.7,3697.0,44.0078]
[1736183460195,0.4822,3698.1,3697.0,44.0078]
[1736183460196,5.27326096,3697.8,3697.4,3.2078]
[1736183460401,5.27326096,3697.8,3697.7,0.27037]
[1736183461097,5.27326096,3697.8,3697.7,41.07037]
[1736183461303,5.27326096,3697.8,3697.7,43.20463855]
[1736183461497,5.54357096,3698.5,3698.4,0.27031]
[1736183461693,0.27033,3698.3,3698.2,0.27032]
[1736183461895,0.27036,3697.9,3697.8,0.27035]
[1736183462102,0.67583,3698.3,3697.5,0.9255]
[1736183462301,0.67587,3698.0,3697.5,0.9255]
[1736183462499,0.27037,3697.7,3697.6,0.27037]
[1736183462700,0.27037,3697.7,3697.6,41.07037]
[1736183462902,0.27037,3697.7,3697.6,0.27037]
[1736183465595,5.27326096,3697.9,3697.7,0.27036]
[1736183465596,0.27037,3697.8,3697.7,0.27036]
[1736183465806,0.27037,3697.8,3697.7,2.40462855]
[1736183466702,0.27037,3697.8,3697.7,2.13426855]
[1736183469208,0.27037,3697.8,3697.7,2.40463855]
[1736183469598,0.27036,3697.9,3697.8,0.27035]
[1736183469803,0.27036,3697.8,3697.7,2.40462855]
[1736183470011,0.27036,3697.9,3697.8,0.27035]
[1736183470512,0.27036,3697.8,3697.7,2.13426855]
[1736183470806,0.27036,3697.8,3697.4,1.157]
[1736183470807,0.27038,3697.5,3697.4,3.56164855]
[1736183471004,0.27038,3697.5,3697.4,2.40464855]
[1736183471199,0.74887,3697.7,3697.6,0.27037]
[1736183471407,5.27326096,3697.7,3697.6,3.47817]
[1736183472007,2.44786097,3697.7,3697.6,8.97887]
[1736183472514,2.44786097,3698.0,3697.9,0.27035]
[1736183472705,2.44786097,3698.0,3697.9,2.40461855]
[1736183473106,0.27033,3698.2,3697.9,2.13426855]
[1736183473306,0.27033,3698.2,3698.1,0.27034]
[1736183475313,0.27033,3698.3,3698.2,0.27032]
[1736183475518,0.27033,3698.3,3698.2,2.40458855]
[1736183476614,0.27032,3698.4,3698.3,0.27031]
[1736183477617,0.27032,3698.3,3698.2,2.40459855]
[1736183478618,0.4557,3698.7,3698.2,2.13426855]
[1736183478819,0.27032,3698.4,3698.3,0.27031]
[1736183479322,0.27032,3698.3,3698.2,2.40459855]
[1736183480326,0.27032,3698.4,3698.3,0.27031]
[1736183480619,0.27032,3698.3,3698.2,2.40459855]